{"text_format":"1","workbook":"xlsx","n_sheets":1,"sheets":["Hoja1"],"not_rendered":{"charts":0,"images":1,"macros":0,"external_links":0,"defined_names":0,"comments":0,"pivot_tables":0},"unopened":[],"bounds":{"document_bytes":16777216,"sheet_cells":100000,"rows_first":2000,"rows_last":500,"rows_between":2000,"halvings":0,"cell_chars":16384,"cell_head_chars":4096},"cells_cut":0,"cells_raw":0,"read":"whole","date_system":"1900"}

{"sheet":"Hoja1","index":0,"n_rows":89,"n_cols":27,"rows_kept":89,"cut":false,"hidden":false,"merged":[[82,2,89,3],[9,0,9,4],[1,7,2,7],[0,5,0,8],[1,8,2,8],[11,0,11,1],[8,0,8,4],[10,0,10,1],[1,5,2,5],[1,6,2,6],[4,5,8,5],[4,6,8,6]]}
[null,null,null,null,null,"CONTADOR MANUAL"]
[null,null,null,null,null,"PREGUNTAS BIEN ","PREGUNTAS MAL","Nº PREGUNTAS ","NOTA SOBRE 10"]
[]
[null,null,null,null,null,null,null,{"$f":"Y6","v":0},{"$f":"Y6*V84","v":0}]
[null,null,null,null,null,"*Indique las preguntas bien contestadas","*Indique las preguntas mal contestada"]
[null,null,null,null,null,null,null,null,null,null,null,null,null,null,null,null,null,null,null,null,null,null,null,null,{"$f":"(F4*1)-(0.25*G4)","v":0}]
[]
[]
["WWW.oposicionesmedioambientales.es"]
["TFN:620443881"]
["RESPUESTA CONTESTADA ",null,"NOTA FINAL SOBRE 10","NOTA FINAL SOBRE 50","Nº TOTAL DE PREGUNTAS"]
["*INDIQUE SUS RESPUESTAS",null,{"$f":"W88","v":0},{"$f":"X88","v":0},{"$f":"Y83","v":0},"PREGUNTAS CORRECTAS",null,null,null,null,null,null,null,null,null,null,null,null,null,null,null,null,null,null,null,"RESPUESTA CORRECTA"]
["PREGUNTA 1",{"$f":"B13:B79","v":0},null,null,null,"B",null,null,null,null,null,null,null,null,null,null,null,null,null,null,null,null,null,null,{"$f":"IF(B13=Z13,1,IF(B13=0,0,-0.25))","v":0},"B",1]
["PREGUNTA 2",null,null,null,null,"B",null,null,null,null,null,null,null,null,null,null,null,null,null,null,null,null,null,null,0,"B",2]
["PREGUNTA 3",null,null,null,null,"B",null,null,null,null,null,null,null,null,null,null,null,null,null,null,null,null,null,null,0,"B",3]
["PREGUNTA 4",null,null,null,null,"D",null,null,null,null,null,null,null,null,null,null,null,null,null,null,null,null,null,null,0,"D",4]
["PREGUNTA 5",null,null,null,null,"C",null,null,null,null,null,null,null,null,null,null,null,null,null,null,null,null,null,null,0,"C",5]
["PREGUNTA 6",null,null,null,null,"D",null,null,null,null,null,null,null,null,null,null,null,null,null,null,null,null,null,null,0,"D",6]
["PREGUNTA 7",null,null,null,null,"C",null,null,null,null,null,null,null,null,null,null,null,null,null,null,null,null,null,null,0,"C",7]
["PREGUNTA 8",null,null,null,null,"C",null,null,null,null,null,null,null,null,null,null,null,null,null,null,null,null,null,null,0,"C",8]
["PREGUNTA 9",null,null,null,null,"A",null,null,null,null,null,null,null,null,null,null,null,null,null,null,null,null,null,null,0,"A",9]
["PREGUNTA 10",null,null,null,null,"A",null,null,null,null,null,null,null,null,null,null,null,null,null,null,null,null,null,null,0,"A",10]
["PREGUNTA 11",null,null,null,null,"A",null,null,null,null,null,null,null,null,null,null,null,null,null,null,null,null,null,null,0,"A",11]
["PREGUNTA 12",null,null,null,null,"A",null,null,null,null,null,null,null,null,null,null,null,null,null,null,null,null,null,null,0,"A",12]
["PREGUNTA 13",null,null,null,null,"D",null,null,null,null,null,null,null,null,null,null,null,null,null,null,null,null,null,null,0,"D",13]
["PREGUNTA 14",null,null,null,null,"C",null,null,null,null,null,null,null,null,null,null,null,null,null,null,null,null,null,null,0,"C",14]
["PREGUNTA 15",null,null,null,null,"A",null,null,null,null,null,null,null,null,null,null,null,null,null,null,null,null,null,null,0,"A",15]
["PREGUNTA 16",null,null,null,null,"A",null,null,null,null,null,null,null,null,null,null,null,null,null,null,null,null,null,null,0,"A",16]
["PREGUNTA 17",null,null,null,null,"B",null,null,null,null,null,null,null,null,null,null,null,null,null,null,null,null,null,null,0,"B",17]
["PREGUNTA 18",null,null,null,null,"A",null,null,null,null,null,null,null,null,null,null,null,null,null,null,null,null,null,null,0,"A",18]
["PREGUNTA 19",null,null,null,null,"C",null,null,null,null,null,null,null,null,null,null,null,null,null,null,null,null,null,null,0,"C",19]
["PREGUNTA 20",null,null,null,null,"A",null,null,null,null,null,null,null,null,null,null,null,null,null,null,null,null,null,null,0,"A",20]
["PREGUNTA 21",null,null,null,null,"B",null,null,null,null,null,null,null,null,null,null,null,null,null,null,null,null,null,null,0,"B",21]
["PREGUNTA 22",null,null,null,null,"B",null,null,null,null,null,null,null,null,null,null,null,null,null,null,null,null,null,null,0,"B",22]
["PREGUNTA 23",null,null,null,null,"B",null,null,null,null,null,null,null,null,null,null,null,null,null,null,null,null,null,null,0,"B",23]
["PREGUNTA 24",null,null,null,null,"C",null,null,null,null,null,null,null,null,null,null,null,null,null,null,null,null,null,null,0,"C",24]
["PREGUNTA 25",null,null,null,null,"A",null,null,null,null,null,null,null,null,null,null,null,null,null,null,null,null,null,null,0,"A",25]
["PREGUNTA 26",null,null,null,null,"B",null,null,null,null,null,null,null,null,null,null,null,null,null,null,null,null,null,null,0,"B",26]
["PREGUNTA 27",null,null,null,null,"C",null,null,null,null,null,null,null,null,null,null,null,null,null,null,null,null,null,null,0,"C",27]
["PREGUNTA 28",null,null,null,null,"C",null,null,null,null,null,null,null,null,null,null,null,null,null,null,null,null,null,null,0,"C",28]
["PREGUNTA 29",null,null,null,null,"B",null,null,"J",null,null,null,null,null,null,null,null,null,null,null,null,null,null,null,0,"B",29]
["PREGUNTA 30",null,null,null,null,"D",null,null,null,null,null,null,null,null,null,null,null,null,null,null,null,null,null,null,0,"D",30]
["PREGUNTA 31",null,null,null,null,"C",null,null,null,null,null,null,null,null,null,null,null,null,null,null,null,null,null,null,0,"C",31]
["PREGUNTA 32",null,null,null,null,"A",null,null,null,null,null,null,null,null,null,null,null,null,null,null,null,null,null,null,0,"A",32]
["PREGUNTA 33",null,null,null,null,"C",null,null,null,null,null,null,null,null,null,null,null,null,null,null,null,null,null,null,{"$f":"IF(B45=Z45,1,IF(B45=0,0,-0.25))","v":0},"C",33]
["PREGUNTA 34",null,null,null,null,"B",null,null,null,null,null,null,null,null,null,null,null,null,null,null,null,null,null,null,0,"B",34]
["PREGUNTA 35",null,null,null,null,"B",null,null,null,null,null,null,null,null,null,null,null,null,null,null,null,null,null,null,0,"B",35]
["PREGUNTA 36",null,null,null,null,"B",null,null,null,null,null,null,null,null,null,null,null,null,null,null,null,null,null,null,0,"B",36]
["PREGUNTA 37",null,null,null,null,"C",null,null,null,null,null,null,null,null,null,null,null,null,null,null,null,null,null,null,0,"C",37]
["PREGUNTA 38",null,null,null,null,"B",null,null,null,null,null,null,null,null,null,null,null,null,null,null,null,null,null,null,0,"B",38]
["PREGUNTA 39",null,null,null,null,"B",null,null,null,null,null,null,null,null,null,null,null,null,null,null,null,null,null,null,0,"B",39]
["PREGUNTA 40",null,null,null,null,"A",null,null,null,null,null,null,null,null,null,null,null,null,null,null,null,null,null,null,0,"A",40]
["PREGUNTA 41",null,null,null,null,"B",null,null,null,null,null,null,null,null,null,null,null,null,null,null,null,null,null,null,0,"B",41]
["PREGUNTA 42",null,null,null,null,"B",null,null,null,null,null,null,null,null,null,null,null,null,null,null,null,null,null,null,0,"B",42]
["PREGUNTA 43",null,null,null,null,"A",null,null,null,null,null,null,null,null,null,null,null,null,null,null,null,null,null,null,0,"A",43]
["PREGUNTA 44",null,null,null,null,"A",null,null,null,null,null,null,null,null,null,null,null,null,null,null,null,null,null,null,0,"A",44]
["PREGUNTA 45",null,null,null,null,"D",null,null,null,null,null,null,null,null,null,null,null,null,null,null,null,null,null,null,0,"D",45]
["PREGUNTA 46",null,null,null,null,"A",null,null,null,null,null,null,null,null,null,null,null,null,null,null,null,null,null,null,0,"A",46]
["PREGUNTA 47",null,null,null,null,"C",null,null,null,null,null,null,null,null,null,null,null,null,null,null,null,null,null,null,0,"C",47]
["PREGUNTA 48",null,null,null,null,"B",null,null,null,null,null,null,null,null,null,null,null,null,null,null,null,null,null,null,0,"B",48]
["PREGUNTA 49",null,null,null,null,"A",null,null,null,null,null,null,null,null,null,null,null,null,null,null,null,null,null,null,0,"A",49]
["PREGUNTA 50",null,null,null,null,"A",null,null,null,null,null,null,null,null,null,null,null,null,null,null,null,null,null,null,0,"A",50]
["PREGUNTA 51",null,null,null,null,"A",null,null,null,null,null,null,null,null,null,null,null,null,null,null,null,null,null,null,0,"A",51]
["PREGUNTA 52",null,null,null,null,"C",null,null,null,null,null,null,null,null,null,null,null,null,null,null,null,null,null,null,0,"C",52]
["PREGUNTA 53",null,null,null,null,"D",null,null,null,null,null,null,null,null,null,null,null,null,null,null,null,null,null,null,0,"D",53]
["PREGUNTA 54",null,null,null,null,"C",null,null,null,null,null,null,null,null,null,null,null,null,null,null,null,null,null,null,0,"C",54]
["PREGUNTA 55",null,null,null,null,"B",null,null,null,null,null,null,null,null,null,null,null,null,null,null,null,null,null,null,0,"B",55]
["PREGUNTA 56",null,null,null,null,"B",null,null,null,null,null,null,null,null,null,null,null,null,null,null,null,null,null,null,0,"B",56]
["PREGUNTA 57",null,null,null,null,"A",null,null,null,null,null,null,null,null,null,null,null,null,null,null,null,null,null,null,0,"A",57]
["PREGUNTA 58",null,null,null,null,"B",null,null,null,null,null,null,null,null,null,null,null,null,null,null,null,null,null,null,0,"B",58]
["PREGUNTA 59",null,null,null,null,"B",null,null,null,null,null,null,null,null,null,null,null,null,null,null,null,null,null,null,0,"B",59]
["PREGUNTA 60",null,null,null,null,"D",null,null,null,null,null,null,null,null,null,null,null,null,null,null,null,null,null,null,0,"D",60]
["PREGUNTA 61",null,null,null,null,"C",null,null,null,null,null,null,null,null,null,null,null,null,null,null,null,null,null,null,0,"C",61]
["PREGUNTA 62",null,null,null,null,"A",null,null,null,null,null,null,null,null,null,null,null,null,null,null,null,null,null,null,0,"A",62]
["PREGUNTA 63",null,null,null,null,"B",null,null,null,null,null,null,null,null,null,null,null,null,null,null,null,null,null,null,0,"B",63]
["PREGUNTA 64",null,null,null,null,"C",null,null,null,null,null,null,null,null,null,null,null,null,null,null,null,null,null,null,0,"C",64]
["PREGUNTA 65",null,null,null,null,"A",null,null,null,null,null,null,null,null,null,null,null,null,null,null,null,null,null,null,{"$f":"IF(B77=Z77,1,IF(B77=0,0,-0.25))","v":0},"A",65]
["PREGUNTA 66",null,null,null,null,"C",null,null,null,null,null,null,null,null,null,null,null,null,null,null,null,null,null,null,0,"C",66]
["PREGUNTA 67",null,null,null,null,"B",null,null,null,null,null,null,null,null,null,null,null,null,null,null,null,null,null,null,0,"B",67]
["PREGUNTA 68",null,null,null,null,"A",null,null,null,null,null,null,null,null,null,null,null,null,null,null,null,null,null,null,0,"A",68]
["PREGUNTA 69",null,null,null,null,"B",null,null,null,null,null,null,null,null,null,null,null,null,null,null,null,null,null,null,0,"B",69]
["PREGUNTA 70",null,null,null,null,"C",null,null,null,null,null,null,null,null,null,null,null,null,null,null,null,null,null,null,0,"C",70]
["PREGUNTA 71",null,"*PARA EL CÁLCULO DE LA NOTA NO SE TENDRÁN EN CUENTA LAS PREGUNTAS DE RESERVA",null,null,"D",null,null,null,null,null,null,null,null,null,null,null,null,null,null,null,null,null,"TOTAL",{"$f":"SUM(Y13:Y82)","v":0},"D",71]
["PREGUNTA 72",null,null,null,null,"A",null,null,null,null,null,null,null,null,null,null,null,null,null,null,null,{"$f":"10/70","v":0.14285714285714285},{"$f":"50/70","v":0.7142857142857143},null,null,"A",72]
["PREGUNTA 73",null,null,null,null,"C",null,null,null,null,null,null,null,null,null,null,null,null,null,null,null,null,null,null,null,"C",73]
["PREGUNTA 74",null,null,null,null,"C",null,null,null,null,null,null,null,null,null,null,null,null,null,null,null,null,null,null,null,"C",74]
["PREGUNTA 75",null,null,null,null,"B",null,null,null,null,null,null,null,null,null,null,null,null,null,null,null,null,"SOBRE 10","SOBRE 50",null,"B",75]
["PREGUNTA 76",null,null,null,null,"B",null,null,null,null,null,null,null,null,null,null,null,null,null,null,null,null,{"$f":"Y83*V84","v":0},{"$f":"W84*Y83","v":0},null,"B",76]
["PREGUNTA 77",{"$f":"B13:B89","v":0},null,null,null,"C",null,null,null,null,null,null,null,null,null,null,null,null,null,null,null,null,null,null,null,"C",77]